[Event "Masters Tournament (MTO)"]
[Site "Biel, Switzerland"]
[Date "2026.07.23"]
[Round "10.28"]
[White "Von Burg, Carl Alexander"]
[Black "Malli, Suvirr"]
[Result "0-1"]
[TimeControl "100+30+30sec/move"]
[WhiteTitle "-"]
[BlackTitle "-"]
[WhiteFideId "1352458"]
[BlackFideId "1341855"]
[WhiteElo "1947"]
[BlackElo "2120"]

1. d4 {[%clk 01:40:52]} {[%emt 00:00:07]} Nf6 {[%clk 01:40:54]} {[%emt
00:00:07]} 2. c4 {[%clk 01:41:14]} {[%emt 00:00:07]} e6 {[%clk 01:41:20]}
{[%emt 00:00:04]} 3. g3 {[%clk 01:41:02]} {[%emt 00:00:42]} c5 {[%clk
01:41:44]} {[%emt 00:00:07]} 4. Nf3 {[%clk 01:37:25]} {[%emt 00:04:06]} cxd4
{[%clk 01:41:59]} {[%emt 00:00:16]} 5. Nxd4 {[%clk 01:37:10]} {[%emt 00:00:44]}
d5 {[%clk 01:41:48]} {[%emt 00:00:41]} 6. Bg2 {[%clk 01:36:11]} {[%emt
00:01:29]} e5 {[%clk 01:41:45]} {[%emt 00:00:33]} 7. Nf3 {[%clk 01:33:14]}
{[%emt 00:03:26]} d4 {[%clk 01:42:08]} {[%emt 00:00:09]} 8. O-O {[%clk
01:29:21]} {[%emt 00:04:23]} Nc6 {[%clk 01:41:59]} {[%emt 00:00:39]} 9. e3
{[%clk 01:28:18]} {[%emt 00:01:32]} Be7 {[%clk 01:38:00]} {[%emt 00:04:29]} 10.
b3 {[%clk 01:21:19]} {[%emt 00:07:29]} Bg4 {[%clk 01:32:20]} {[%emt 00:06:11]}
11. h3 {[%clk 01:18:10]} {[%emt 00:03:39]} Bh5 {[%clk 01:32:17]} {[%emt
00:00:32]} 12. g4 {[%clk 01:18:01]} {[%emt 00:00:39]} Bg6 {[%clk 01:32:39]}
{[%emt 00:00:08]} 13. Bb2 {[%clk 01:07:09]} {[%emt 00:11:21]} dxe3 {[%clk
01:27:55]} {[%emt 00:05:15]} 14. Qxd8+ {[%clk 01:06:34]} Rxd8 {[%clk 01:28:04]}
{[%emt 00:01:25]} 15. fxe3 {[%clk 01:05:44]} {[%emt 00:01:19]} Nb4 {[%clk
01:26:35]} {[%emt 00:02:01]} 16. Ne1 {[%clk 00:54:49]} {[%emt 00:11:17]} Bc5
{[%clk 01:01:19]} {[%emt 00:25:54]} 17. Bxe5 {[%clk 00:47:42]} {[%emt
00:07:36]} Bxe3+ {[%clk 00:57:53]} {[%emt 00:03:57]} 18. Kh2 {[%clk 00:47:58]}
{[%emt 00:00:14]} h5 {[%clk 00:53:51]} {[%emt 00:04:32]} 19. gxh5 {[%clk
00:31:27]} {[%emt 00:16:59]} Rxh5 {[%clk 00:52:57]} {[%emt 00:01:25]} 20. Bxf6
{[%clk 00:30:51]} {[%emt 00:01:06]} gxf6 {[%clk 00:53:20]} {[%emt 00:00:08]} 21.
Nc3 {[%clk 00:30:49]} {[%emt 00:00:31]} Bd4 {[%clk 00:48:02]} {[%emt 00:05:48]}
22. Rc1 {[%clk 00:30:14]} {[%emt 00:01:05]} Be5+ {[%clk 00:47:58]} {[%emt
00:00:35]} 23. Kg1 {[%clk 00:30:17]} {[%emt 00:00:25]} Nd3 {[%clk 00:34:49]}
{[%emt 00:13:41]} 24. Nxd3 {[%clk 00:29:36]} {[%emt 00:01:10]} Rxd3 {[%clk
00:35:12]} {[%emt 00:00:07]} 25. Nd5 {[%clk 00:27:46]} {[%emt 00:02:20]} Rg5
{[%clk 00:33:56]} {[%emt 00:01:46]} 26. Nxf6+ {[%clk 00:23:06]} {[%emt
00:05:10]} Bxf6 {[%clk 00:33:22]} {[%emt 00:01:06]} 27. Rxf6 {[%clk 00:23:23]}
{[%emt 00:00:12]} Rxh3 {[%clk 00:33:17]} {[%emt 00:00:35]} 28. Re1+ {[%clk
00:22:09]} {[%emt 00:01:43]} Kf8 {[%clk 00:27:10]} {[%emt 00:06:38]} 29. Re5
{[%clk 00:22:05]} {[%emt 00:00:33]} Rg4 {[%clk 00:21:07]} {[%emt 00:06:34]} 30.
Rf4 {[%clk 00:20:31]} {[%emt 00:02:03]} Rxf4 {[%clk 00:19:20]} {[%emt
00:02:19]} 31. Bxh3 {[%clk 00:20:58]} {[%emt 00:00:02]} Rd4 {[%clk 00:18:49]}
{[%emt 00:00:59]} 32. Bg2 {[%clk 00:17:47]} {[%emt 00:03:41]} b6 {[%clk
00:17:34]} {[%emt 00:01:47]} 33. c5 {[%clk 00:14:30]} {[%emt 00:03:47]} Rd1+
{[%clk 00:17:36]} {[%emt 00:00:28]} 34. Kf2 {[%clk 00:12:09]} {[%emt 00:02:50]}
bxc5 {[%clk 00:17:12]} {[%emt 00:00:55]} 35. Rxc5 {[%clk 00:07:29]} {[%emt
00:05:10]} Rd2+ {[%clk 00:17:32]} {[%emt 00:00:10]} 36. Kg3 {[%clk 00:07:42]}
{[%emt 00:00:17]} Rxa2 {[%clk 00:17:57]} {[%emt 00:00:04]} 37. Bd5 {[%clk
00:07:27]} {[%emt 00:00:44]} Ra3 {[%clk 00:13:41]} {[%emt 00:04:48]} 38. Kf4
{[%clk 00:07:20]} {[%emt 00:00:35]} Ra1 {[%clk 00:11:28]} {[%emt 00:02:45]} 39.
Ke5 {[%clk 00:05:58]} {[%emt 00:01:50]} Kg7 {[%clk 00:11:34]} {[%emt 00:00:26]}
40. Rc7 {[%clk 00:05:32]} {[%emt 00:00:55]} Ra5 {[%clk 00:06:37]} {[%emt
00:05:28]} 41. Kd4 {[%clk 00:02:23]} {[%emt 00:03:38]} Kf6 {[%clk 00:05:31]}
{[%emt 00:01:36]} 42. Bc4 {[%clk 00:02:03]} {[%emt 00:00:51]} Ra1 {[%clk
00:04:44]} {[%emt 00:01:17]} 43. Rb7 {[%clk 00:01:45]} {[%emt 00:00:47]} Bh5
{[%clk 00:04:07]} {[%emt 00:01:07]} 44. Rc7 {[%clk 00:01:01]} {[%emt 00:01:15]}
Kg7 {[%clk 00:03:39]} {[%emt 00:00:57]} 45. Rb7 {[%clk 00:00:41]} {[%emt
00:00:51]} Kf8 {[%clk 00:03:30]} {[%emt 00:00:39]} 46. Rb8+ {[%clk 00:00:49]}
{[%emt 00:00:21]} Ke7 {[%clk 00:03:26]} {[%emt 00:00:33]} 47. Rb7+ {[%clk
00:00:51]} {[%emt 00:00:30]} Ke8 {[%clk 00:03:27]} {[%emt 00:00:28]} 48. Rb8+
{[%clk 00:01:08]} {[%emt 00:00:14]} Kd7 {[%clk 00:01:45]} {[%emt 00:02:11]} 49.
Rb7+ {[%clk 00:28:36]} {[%emt 00:03:04]} Kc8 {[%clk 00:31:44]} {[%emt
00:00:30]} 50. Re7 {[%clk 00:27:33]} {[%emt 00:01:31]} Kd8 {[%emt 00:01:00]} 51.
Rb7 {[%clk 00:27:36]} f6 {[%clk 00:30:43]} {[%emt 00:01:29]} 52. Ke4 {[%clk
00:23:39]} {[%emt 00:04:25]} Ra5 {[%clk 00:27:07]} {[%emt 00:04:08]} 53. Kd4
{[%clk 00:23:12]} {[%emt 00:00:57]} Be8 {[%clk 00:25:43]} {[%emt 00:01:54]} 54.
Rg7 {[%clk 00:21:39]} {[%emt 00:02:02]} Bd7 {[%clk 00:24:57]} {[%emt 00:01:17]}
55. Bd5 {[%clk 00:20:01]} {[%emt 00:02:09]} Ra1 {[%clk 00:23:38]} {[%emt
00:01:48]} 56. Kc5 {[%clk 00:18:53]} {[%emt 00:01:37]} Ra5+ {[%clk 00:23:45]}
{[%emt 00:00:24]} 57. Kd4 {[%clk 00:18:25]} {[%emt 00:00:56]} Ra6 {[%clk
00:23:46]} {[%emt 00:00:30]} 58. Kc5 {[%clk 00:18:25]} {[%emt 00:00:30]} Kc7
{[%clk 00:23:44]} {[%emt 00:00:29]} 59. Be4 {[%clk 00:17:33]} {[%emt 00:01:26]}
Ra5+ {[%clk 00:22:28]} {[%emt 00:01:47]} 60. Kd4 {[%clk 00:17:38]} {[%emt
00:00:23]} Rb5 {[%clk 00:21:56]} {[%emt 00:01:03]} 61. Bd5 {[%clk 00:17:39]}
{[%emt 00:00:29]} Kd6 {[%clk 00:21:12]} {[%emt 00:01:14]} 62. Bc4 {[%clk
00:17:19]} {[%emt 00:00:49]} Rf5 {[%clk 00:19:11]} {[%emt 00:02:29]} 63. Rf7
{[%clk 00:16:38]} {[%emt 00:01:12]} a5 {[%clk 00:17:11]} {[%emt 00:02:32]} 64.
Bd3 {[%clk 00:11:29]} {[%emt 00:05:38]} Rd5+ {[%clk 00:15:38]} {[%emt
00:02:03]} 65. Ke3 {[%clk 00:09:35]} {[%emt 00:02:25]} Ke6 {[%clk 00:13:50]}
{[%emt 00:02:19]} 66. Rf8 {[%clk 00:09:32]} {[%emt 00:00:32]} Bb5 {[%clk
00:08:36]} {[%emt 00:05:44]} 67. Bg6 {[%clk 00:08:33]} {[%emt 00:01:28]} Ke5
{[%clk 00:07:24]} {[%emt 00:01:41]} 68. Ra8 {[%clk 00:07:56]} {[%emt 00:01:07]}
Bd7 {[%clk 00:07:08]} {[%emt 00:00:44]} 69. Bd3 {[%clk 00:07:45]} {[%emt
00:00:43]} f5 {[%clk 00:07:03]} {[%emt 00:00:34]} 70. Bc4 {[%clk 00:07:37]}
{[%emt 00:00:42]} f4+ {[%clk 00:07:21]} {[%emt 00:00:12]} 71. Ke2 {[%clk
00:07:31]} {[%emt 00:00:35]} Rc5 {[%clk 00:05:04]} {[%emt 00:02:47]} 72. Bf7
{[%clk 00:06:37]} {[%emt 00:01:24]} f3+ {[%clk 00:04:47]} {[%emt 00:00:48]} 73.
Ke3 {[%clk 00:06:17]} {[%emt 00:00:46]} Bc6 {[%clk 00:03:46]} {[%emt 00:01:32]}
74. Ra7 {[%clk 00:06:11]} {[%emt 00:00:37]} Kd6 {[%clk 00:02:45]} {[%emt
00:01:30]} 75. Bc4 {[%clk 00:04:22]} {[%emt 00:02:20]} Re5+ {[%clk 00:02:54]}
{[%emt 00:00:21]} 76. Kf2 {[%clk 00:04:33]} {[%emt 00:00:20]} Rh5 {[%clk
00:02:56]} {[%emt 00:00:26]} 77. Ke3 {[%clk 00:04:20]} {[%emt 00:00:45]} Rf5
{[%clk 00:02:44]} {[%emt 00:00:41]} 78. Kf2 {[%clk 00:04:38]} {[%emt 00:00:13]}
Re5 {[%clk 00:02:26]} {[%emt 00:00:46]} 79. Kg3 {[%clk 00:04:34]} {[%emt
00:00:32]} Rg5+ {[%clk 00:02:24]} {[%emt 00:00:36]} 80. Kf4 {[%clk 00:04:30]}
{[%emt 00:00:33]} Rc5 {[%clk 00:02:16]} {[%emt 00:00:37]} 81. Ke3 {[%clk
00:04:47]} {[%emt 00:00:14]} a4 {[%clk 00:01:55]} {[%emt 00:00:51]} 82. Rf7
{[%clk 00:02:51]} {[%emt 00:02:24]} axb3 {[%clk 00:01:57]} {[%emt 00:00:31]} 83.
Bd3 {[%clk 00:00:32]} {[%emt 00:02:50]} b2 {[%clk 00:01:56]} {[%emt 00:00:31]}
84. Kd2 {[%clk 00:00:37]} {[%emt 00:00:24]} Rd5 {[%clk 00:01:29]} {[%emt
00:00:57]} 0-1

[Event "Masters Tournament (MTO)"]
[Site "Biel, Switzerland"]
[Date "2026.07.23"]
[Round "10.29"]
[White "Joly, Fabrice"]
[Black "Papaux, Jeremie"]
[Result "0-1"]
[TimeControl "100+30+30sec/move"]
[WhiteTitle "-"]
[BlackTitle "-"]
[WhiteFideId "612235"]
[BlackFideId "1340867"]
[WhiteElo "1907"]
[BlackElo "2102"]

1. d4 {[%clk 01:40:57]} {[%emt 00:00:03]} d5 {[%clk 01:40:45]} {[%emt
00:00:15]} 2. Nf3 {[%clk 01:41:19]} {[%emt 00:00:08]} Nf6 {[%clk 01:41:08]}
{[%emt 00:00:06]} 3. c4 {[%clk 01:41:44]} {[%emt 00:00:05]} e6 {[%clk
01:41:27]} {[%emt 00:00:13]} 4. g3 {[%clk 01:42:07]} {[%emt 00:00:06]} Be7
{[%clk 01:41:51]} {[%emt 00:00:06]} 5. Bg2 {[%clk 01:42:31]} {[%emt 00:00:06]}
O-O {[%clk 01:40:07]} {[%emt 00:02:13]} 6. O-O {[%clk 01:42:57]} {[%emt
00:00:05]} dxc4 {[%clk 01:40:08]} {[%emt 00:00:29]} 7. Ne5 {[%clk 01:43:09]}
{[%emt 00:00:18]} Nc6 {[%clk 01:40:28]} {[%emt 00:00:10]} 8. Nxc6 {[%clk
01:43:35]} {[%emt 00:00:05]} bxc6 {[%clk 01:40:53]} {[%emt 00:00:05]} 9. b3
{[%clk 01:44:01]} {[%emt 00:00:04]} cxb3 {[%clk 01:34:10]} {[%emt 00:07:12]} 10.
axb3 {[%clk 01:44:16]} {[%emt 00:00:16]} Nd5 {[%clk 01:33:23]} {[%emt
00:01:17]} 11. Bb2 {[%clk 01:44:38]} {[%emt 00:00:09]} Bb7 {[%clk 01:26:53]}
{[%emt 00:06:59]} 12. Qc1 {[%clk 01:36:08]} {[%emt 00:09:00]} Bb4 {[%clk
01:23:07]} {[%emt 00:04:16]} 13. Na3 {[%clk 01:28:09]} {[%emt 00:08:29]} Qe7
{[%clk 01:22:34]} {[%emt 00:01:02]} 14. Nc4 {[%clk 01:22:00]} {[%emt 00:06:40]}
a5 {[%clk 01:17:44]} {[%emt 00:05:19]} 15. Ne5 {[%clk 01:18:17]} {[%emt
00:04:14]} c5 {[%clk 01:17:47]} {[%emt 00:00:28]} 16. Nd3 {[%clk 01:10:47]}
{[%emt 00:07:59]} cxd4 {[%clk 01:17:31]} {[%emt 00:00:45]} 17. Nxb4 {[%clk
01:09:47]} {[%emt 00:01:31]} axb4 {[%clk 01:17:46]} {[%emt 00:00:15]} 18. Bxd4
{[%clk 01:10:01]} {[%emt 00:00:16]} Rxa1 {[%clk 01:14:02]} {[%emt 00:04:14]} 19.
Qxa1 {[%clk 01:07:53]} {[%emt 00:02:39]} Ra8 {[%clk 01:14:06]} {[%emt
00:00:25]} 20. Qb2 {[%clk 01:04:48]} {[%emt 00:03:35]} f6 {[%clk 01:11:09]}
{[%emt 00:03:28]} 21. Rc1 {[%clk 00:55:06]} {[%emt 00:10:11]} Qd7 {[%clk
01:11:09]} {[%emt 00:00:30]} 22. e4 {[%clk 00:20:00]} {[%emt 00:35:36]} Ne7
{[%clk 01:08:55]} {[%emt 00:02:43]} 23. Bc5 {[%clk 00:16:45]} {[%emt 00:03:46]}
Nc6 {[%clk 01:07:49]} {[%emt 00:01:37]} 24. e5 {[%clk 00:15:33]} {[%emt
00:01:41]} fxe5 {[%clk 01:04:39]} {[%emt 00:03:40]} 25. Bxb4 {[%clk 00:14:44]}
{[%emt 00:01:20]} Nd4 {[%clk 01:00:00]} {[%emt 00:05:09]} 26. Bxb7 {[%clk
00:10:08]} {[%emt 00:05:05]} Rb8 {[%clk 01:00:25]} {[%emt 00:00:04]} 27. Ra1
{[%clk 00:10:28]} {[%emt 00:00:11]} Qb5 {[%clk 00:58:44]} {[%emt 00:02:11]} 28.
Bc3 {[%clk 00:06:14]} {[%emt 00:04:45]} Ne2+ {[%clk 00:57:20]} {[%emt
00:01:53]} 29. Kg2 {[%clk 00:06:37]} {[%emt 00:00:07]} Qxb7+ {[%clk 00:57:14]}
{[%emt 00:00:36]} 30. Kf1 {[%clk 00:06:55]} {[%emt 00:00:12]} Nd4 {[%clk
00:41:53]} {[%emt 00:15:51]} 31. Bxd4 {[%clk 00:07:10]} {[%emt 00:00:15]} exd4
{[%clk 00:42:10]} {[%emt 00:00:13]} 32. Qxd4 {[%clk 00:07:33]} {[%emt
00:00:08]} Qxb3 {[%clk 00:40:35]} {[%emt 00:02:05]} 33. Rc1 {[%clk 00:07:28]}
{[%emt 00:00:34]} Qf3 {[%clk 00:39:08]} {[%emt 00:01:57]} 34. Qc4 {[%clk
00:06:32]} {[%emt 00:01:26]} Rf8 {[%clk 00:38:22]} {[%emt 00:01:16]} 35. Rc2
{[%clk 00:02:59]} {[%emt 00:04:03]} Kh8 {[%clk 00:34:49]} {[%emt 00:04:02]} 36.
Kg1 {[%clk 00:02:43]} {[%emt 00:00:47]} Rd8 {[%clk 00:33:38]} {[%emt 00:01:41]}
37. Rc1 {[%clk 00:02:32]} {[%emt 00:00:42]} Rd1+ {[%clk 00:33:38]} {[%emt
00:00:29]} 38. Rxd1 {[%clk 00:02:58]} {[%emt 00:00:04]} Qxd1+ {[%clk 00:33:58]}
{[%emt 00:00:10]} 39. Qf1 {[%clk 00:02:20]} {[%emt 00:01:08]} Qxf1+ {[%clk
00:34:20]} {[%emt 00:00:07]} 40. Kxf1 {[%clk 00:02:46]} {[%emt 00:00:05]} Kg8
{[%clk 00:34:38]} {[%emt 00:00:11]} 0-1

[Event "Masters Tournament (MTO)"]
[Site "Biel, Switzerland"]
[Date "2026.07.23"]
[Round "10.30"]
[White "Berezovskii, Arina"]
[Black "Bucher, Dominic"]
[Result "0-1"]
[TimeControl "100+30+30sec/move"]
[WhiteTitle "-"]
[BlackTitle "-"]
[WhiteFideId "34449850"]
[BlackFideId "1353144"]
[WhiteElo "1906"]
[BlackElo "2078"]

1. e4 {[%clk 01:40:59]} {[%emt 01:21:39]} e6 {[%clk 01:40:52]} {[%emt
00:00:08]} 2. d4 {[%clk 01:41:24]} {[%emt 00:00:07]} d5 {[%clk 01:41:16]}
{[%emt 00:00:03]} 3. Nd2 {[%clk 01:41:47]} {[%emt 00:00:07]} c5 {[%clk
01:41:39]} {[%emt 00:00:07]} 4. exd5 {[%clk 01:42:12]} {[%emt 00:00:06]} Qxd5
{[%clk 01:42:01]} {[%emt 00:00:08]} 5. Ngf3 {[%clk 01:42:28]} {[%emt 00:00:13]}
Nf6 {[%clk 01:42:22]} {[%emt 00:00:09]} 6. Bc4 {[%emt 00:00:50]} Qd8 {[%clk
01:42:43]} 7. O-O {[%clk 01:41:52]} {[%emt 00:00:56]} Nc6 {[%clk 01:42:13]}
{[%emt 00:01:01]} 8. Nb3 {[%clk 01:40:31]} {[%emt 00:01:51]} cxd4 {[%clk
01:38:51]} {[%emt 00:03:51]} 9. Nfxd4 {[%clk 01:39:56]} {[%emt 00:01:05]} Bd7
{[%clk 01:38:29]} {[%emt 00:00:52]} 10. Bf4 {[%clk 01:26:56]} {[%emt 00:13:30]}
Be7 {[%clk 01:34:11]} {[%emt 00:04:47]} 11. Re1 {[%clk 01:20:28]} {[%emt
00:06:58]} O-O {[%clk 01:33:33]} {[%emt 00:01:08]} 12. Nb5 {[%clk 01:17:50]}
{[%emt 00:03:08]} a6 {[%clk 01:25:11]} {[%emt 00:08:52]} 13. Nd6 {[%clk
01:09:22]} {[%emt 00:08:59]} Qb6 {[%clk 01:03:58]} {[%emt 00:21:43]} 14. Qe2
{[%clk 00:52:15]} {[%emt 00:17:36]} Rad8 {[%clk 00:46:04]} {[%emt 00:18:24]} 15.
Ne4 {[%clk 00:48:57]} {[%emt 00:03:48]} Nxe4 {[%clk 00:40:40]} {[%emt
00:05:54]} 16. Qxe4 {[%clk 00:49:15]} {[%emt 00:00:12]} Nb4 {[%clk 00:40:19]}
{[%emt 00:00:51]} 17. c3 {[%clk 00:41:52]} {[%emt 00:07:53]} Bc6 {[%clk
00:39:31]} {[%emt 00:01:18]} 18. Qe2 {[%clk 00:41:41]} {[%emt 00:00:42]} Nd5
{[%clk 00:39:38]} {[%emt 00:00:23]} 19. Be5 {[%clk 00:40:22]} {[%emt 00:01:49]}
Bd6 {[%clk 00:34:43]} {[%emt 00:05:25]} 20. Qg4 {[%clk 00:30:18]} {[%emt
00:10:33]} Bxe5 {[%clk 00:33:22]} {[%emt 00:01:51]} 21. Rxe5 {[%clk 00:30:38]}
{[%emt 00:00:10]} Nf6 {[%clk 00:33:37]} {[%emt 00:00:15]} 22. Qf4 {[%clk
00:28:03]} {[%emt 00:03:06]} Bd5 {[%clk 00:27:24]} {[%emt 00:06:43]} 23. Bxd5
{[%clk 00:25:35]} {[%emt 00:02:58]} Rxd5 {[%clk 00:26:20]} {[%emt 00:01:33]} 24.
Rxd5 {[%clk 00:24:15]} {[%emt 00:01:50]} Nxd5 {[%clk 00:26:41]} {[%emt
00:00:10]} 25. Qd4 {[%clk 00:22:31]} {[%emt 00:02:14]} Qxd4 {[%clk 00:20:39]}
{[%emt 00:06:32]} 26. Nxd4 {[%clk 00:22:53]} {[%emt 00:00:07]} Rd8 {[%clk
00:20:55]} {[%emt 00:00:14]} 27. g3 {[%clk 00:19:45]} {[%emt 00:03:38]} Nb6
{[%clk 00:18:56]} {[%emt 00:02:29]} 28. a4 {[%clk 00:18:14]} {[%emt 00:02:01]}
e5 {[%clk 00:17:51]} {[%emt 00:01:35]} 29. Nf3 {[%clk 00:16:51]} {[%emt
00:01:53]} f6 {[%clk 00:17:59]} {[%emt 00:00:22]} 30. Kg2 {[%clk 00:14:39]}
{[%emt 00:02:42]} Rd3 {[%clk 00:14:36]} {[%emt 00:03:53]} 31. Ra3 {[%clk
00:11:39]} {[%emt 00:03:30]} Nc4 {[%clk 00:12:26]} {[%emt 00:02:40]} 32. Ra2
{[%clk 00:09:04]} {[%emt 00:03:04]} e4 {[%clk 00:12:20]} {[%emt 00:00:35]} 33.
Nd4 {[%clk 00:09:06]} {[%emt 00:00:28]} Rd2 {[%clk 00:12:03]} {[%emt 00:00:48]}
34. Nb3 {[%clk 00:08:09]} {[%emt 00:01:28]} Ne3+ {[%clk 00:10:57]} {[%emt
00:01:35]} 35. Kh3 {[%clk 00:07:55]} {[%emt 00:00:44]} Rxf2 {[%clk 00:11:19]}
{[%emt 00:00:09]} 36. Nc5 {[%clk 00:07:34]} {[%emt 00:00:51]} f5 {[%clk
00:09:59]} {[%emt 00:01:50]} 37. Nxb7 {[%clk 00:06:23]} {[%emt 00:01:40]} g5
{[%clk 00:09:02]} {[%emt 00:01:27]} 38. Nd6 {[%clk 00:05:36]} {[%emt 00:01:17]}
h6 {[%clk 00:05:57]} {[%emt 00:03:36]} 39. Nxf5 {[%clk 00:03:56]} {[%emt
00:02:10]} Rxf5 {[%clk 00:06:14]} {[%emt 00:00:12]} 40. b4 {[%clk 00:03:58]}
{[%emt 00:00:29]} g4+ {[%clk 00:06:19]} {[%emt 00:00:25]} 41. Kh4 {[%clk
00:03:27]} {[%emt 00:01:00]} Rg5 {[%clk 00:06:38]} {[%emt 00:00:11]} 42. Rf2
{[%clk 00:01:41]} {[%emt 00:02:17]} Nf5+ {[%clk 00:06:54]} {[%emt 00:00:14]} 43.
Rxf5 {[%clk 00:01:35]} {[%emt 00:00:35]} Rxf5 {[%clk 00:07:13]} {[%emt
00:00:11]} 44. Kxg4 {[%clk 00:02:01]} {[%emt 00:00:05]} Rf7 {[%clk 00:07:25]}
{[%emt 00:00:17]} 45. b5 {[%clk 00:02:25]} {[%emt 00:00:06]} e3 {[%clk
00:07:35]} {[%emt 00:00:21]} 46. bxa6 {[%clk 00:02:50]} {[%emt 00:00:05]} e2
{[%clk 00:07:54]} {[%emt 00:00:11]} 47. a7 {[%clk 00:03:14]} {[%emt 00:00:06]}
Rxa7 {[%clk 00:08:15]} {[%emt 00:00:08]} 0-1

[Event "Masters Tournament (MTO)"]
[Site "Biel, Switzerland"]
[Date "2026.07.23"]
[Round "10.31"]
[White "Gerrits, Augustin"]
[Black "Tkhoruk, Roman"]
[Result "1/2-1/2"]
[TimeControl "100+30+30sec/move"]
[WhiteTitle "-"]
[BlackTitle "-"]
[WhiteFideId "285358"]
[BlackFideId "34161589"]
[WhiteElo "2072"]
[BlackElo "1967"]

1. e4 {[%clk 01:40:43]} {[%emt 00:00:18]} c6 {[%clk 01:40:36]} {[%emt
00:00:23]} 2. d4 {[%clk 01:40:37]} {[%emt 00:00:35]} d5 {[%clk 01:40:55]}
{[%emt 00:00:12]} 3. Nc3 {[%clk 01:40:43]} {[%emt 00:00:24]} dxe4 {[%clk
01:41:15]} {[%emt 00:00:10]} 4. Nxe4 {[%clk 01:40:46]} {[%emt 00:00:26]} Nf6
{[%clk 01:41:26]} {[%emt 00:00:19]} 5. Nxf6+ {[%clk 01:40:46]} {[%emt
00:00:31]} exf6 {[%clk 01:41:48]} {[%emt 00:00:08]} 6. c3 {[%clk 01:40:28]}
{[%emt 00:00:47]} Bd6 {[%clk 01:41:27]} {[%emt 00:00:52]} 7. Bd3 {[%clk
01:40:30]} {[%emt 00:00:27]} O-O {[%clk 01:41:29]} {[%emt 00:00:29]} 8. Ne2
{[%clk 01:40:24]} {[%emt 00:00:35]} Re8 {[%clk 01:40:33]} {[%emt 00:01:27]} 9.
O-O {[%clk 01:40:32]} {[%emt 00:00:21]} Qc7 {[%clk 01:40:34]} {[%emt 00:00:29]}
10. Ng3 {[%clk 01:38:16]} {[%emt 00:02:46]} Nd7 {[%clk 01:38:26]} {[%emt
00:02:38]} 11. Nf5 {[%clk 01:38:18]} {[%emt 00:00:28]} Nf8 {[%clk 01:28:03]}
{[%emt 00:10:54]} 12. Nxd6 {[%clk 01:36:16]} {[%emt 00:02:31]} Qxd6 {[%clk
01:28:20]} {[%emt 00:00:13]} 13. Be3 {[%clk 01:31:56]} {[%emt 00:04:50]} Ng6
{[%clk 01:28:16]} {[%emt 00:00:34]} 14. Qf3 {[%clk 01:24:04]} {[%emt 00:08:22]}
Bd7 {[%clk 01:21:45]} {[%emt 00:07:02]} 15. Rfe1 {[%clk 01:19:35]} {[%emt
00:04:58]} Re7 {[%clk 01:18:41]} {[%emt 00:03:34]} 16. Qg3 {[%clk 01:14:18]}
{[%emt 00:05:47]} Qxg3 {[%clk 01:18:40]} {[%emt 00:00:31]} 17. hxg3 {[%emt
00:00:27]} Rae8 {[%clk 01:18:48]} 18. Kf1 {[%clk 01:14:26]} {[%emt 00:00:48]}
f5 {[%clk 01:16:22]} {[%emt 00:02:56]} 19. c4 {[%clk 01:06:37]} {[%emt
00:08:19]} f6 {[%clk 01:10:29]} {[%emt 00:06:23]} 20. a4 {[%clk 01:03:02]}
{[%emt 00:04:05]} Nf8 {[%clk 01:04:26]} {[%emt 00:06:33]} 21. b4 {[%clk
00:54:09]} {[%emt 00:09:23]} g5 {[%clk 01:02:58]} {[%emt 00:01:58]} 22. b5
{[%clk 00:47:54]} {[%emt 00:06:45]} Ng6 {[%clk 01:00:25]} {[%emt 00:03:03]} 23.
bxc6 {[%clk 00:39:53]} {[%emt 00:08:31]} bxc6 {[%clk 01:00:44]} {[%emt
00:00:11]} 24. Bd2 {[%clk 00:38:27]} {[%emt 00:01:56]} Rxe1+ {[%clk 01:00:33]}
{[%emt 00:00:41]} 25. Rxe1 {[%clk 00:36:21]} {[%emt 00:02:36]} Rxe1+ {[%clk
01:00:47]} {[%emt 00:00:16]} 26. Kxe1 {[%clk 00:36:43]} {[%emt 00:00:08]} Kf7
{[%clk 00:56:53]} {[%emt 00:04:24]} 27. Bb4 {[%clk 00:34:43]} {[%emt 00:02:29]}
f4 {[%clk 00:56:18]} {[%emt 00:01:05]} 28. Bc5 {[%clk 00:32:09]} {[%emt
00:03:04]} a6 {[%clk 00:56:15]} {[%emt 00:00:34]} 29. Kd2 {[%clk 00:29:06]}
{[%emt 00:03:33]} fxg3 {[%clk 00:48:48]} {[%emt 00:07:56]} 30. fxg3 {[%clk
00:29:29]} {[%emt 00:00:07]} h5 {[%clk 00:46:19]} {[%emt 00:03:00]} 31. Kc3
{[%clk 00:27:24]} {[%emt 00:02:35]} h4 {[%clk 00:40:44]} {[%emt 00:06:05]} 32.
Bxg6+ {[%clk 00:26:01]} {[%emt 00:01:53]} Kxg6 {[%clk 00:41:00]} {[%emt
00:00:14]} 33. gxh4 {[%clk 00:26:23]} {[%emt 00:00:08]} gxh4 {[%clk 00:41:10]}
{[%emt 00:00:19]} 34. a5 {[%clk 00:21:57]} {[%emt 00:04:56]} h3 {[%clk
00:40:49]} {[%emt 00:00:51]} 35. gxh3 {[%clk 00:22:17]} {[%emt 00:00:11]} Bxh3
{[%clk 00:41:07]} {[%emt 00:00:12]} 36. Kb4 {[%clk 00:21:18]} {[%emt 00:01:29]}
Bf1 {[%clk 00:41:18]} {[%emt 00:00:19]} 37. Bd6 {[%clk 00:21:37]} {[%emt
00:00:10]} Kf5 {[%clk 00:41:21]} {[%emt 00:00:27]} 38. Kc5 {[%clk 00:21:50]}
{[%emt 00:00:17]} Ke6 {[%clk 00:41:42]} {[%emt 00:00:09]} 39. Bh2 {[%clk
00:21:47]} {[%emt 00:00:33]} Kd7 {[%clk 00:42:00]} {[%emt 00:00:13]} 40. Bf4
{[%clk 00:22:11]} {[%emt 00:00:06]} Be2 {[%clk 00:42:19]} {[%emt 00:00:10]} 41.
d5 {[%clk 00:22:21]} {[%emt 00:00:21]} cxd5 {[%clk 00:42:40]} {[%emt 00:00:09]}
42. Kxd5 {[%clk 00:22:46]} {[%emt 00:00:04]} Bf1 {[%clk 00:42:51]} {[%emt
00:00:19]} 43. Bg3 {[%clk 00:22:53]} {[%emt 00:00:23]} Be2 {[%clk 00:43:12]}
{[%emt 00:00:10]} 44. Bh2 {[%clk 00:23:19]} {[%emt 00:00:04]} Bf1 {[%emt
00:00:09]} 45. Bf4 {[%clk 00:23:05]} {[%emt 00:00:41]} Be2 {[%clk 00:43:58]}
{[%emt 00:00:07]} 46. Bh6 {[%clk 00:23:33]} {[%emt 00:00:03]} f5 {[%clk
00:44:10]} {[%emt 00:00:18]} 47. Bf4 {[%clk 00:23:57]} {[%emt 00:00:04]} Bf1
{[%clk 00:44:33]} {[%emt 00:00:08]} 48. Bh2 {[%clk 00:23:29]} {[%emt 00:00:58]}
Be2 {[%clk 00:44:55]} {[%emt 00:00:09]} 49. Bf4 {[%clk 00:23:55]} {[%emt
00:00:04]} Bf1 {[%clk 00:45:18]} {[%emt 00:00:07]} 50. Bh2 {[%clk 00:24:23]}
{[%emt 00:00:02]} Be2 {[%clk 00:45:33]} {[%emt 00:00:14]} 51. Bf4 {[%clk
00:24:46]} {[%emt 00:00:03]} 1/2-1/2